fUSD/lending_fUSD_20250507
["ID","MTS","AMOUNT","RATE_DAILY","PERIOD"]
[360201069,1746617433924,-450.0,0.00019596,2]
[360201070,1746617433934,-450.0,0.00019596,2]
[360201071,1746617433943,-450.0,0.00019596,2]
[360201072,1746617433953,-450.0,0.00019596,2]
[360201073,1746617433965,-450.0,0.00019596,2]
[360201074,1746617433974,-450.0,0.00019596,2]
[360201075,1746617433983,-450.0,0.00019596,2]
[360201076,1746617433993,-450.0,0.00019596,2]
[360201077,1746617434003,-450.0,0.00019596,2]
[360201078,1746617434012,-450.0,0.00019596,2]
[360201079,1746617434022,-450.0,0.00019596,2]
[360201080,1746617434031,-450.0,0.00019596,2]
[360201081,1746617434041,-450.0,0.00019596,2]
[360201082,1746617434050,-454.57061802,0.00019596,2]
[360201083,1746617434060,-453.23725052,0.00019596,2]
[360201084,1746617434069,-450.0,0.00019596,2]
[360201085,1746617434079,-450.0,0.00019596,2]
[360201086,1746617434090,-450.0,0.00019596,2]
[360201087,1746617434100,-450.0,0.00019596,2]
[360201088,1746617434109,-450.0,0.00019596,2]
[360201089,1746617434119,-450.0,0.00019596,2]
[360201090,1746617434129,-454.56804679,0.00019596,2]
[360201091,1746617434139,-452.77360044,0.00019596,2]
[360201092,1746617434149,-450.0,0.00019596,2]
[360201093,1746617434160,-450.0,0.00019596,2]
[360201094,1746617434169,-450.0,0.00019596,2]
[360201095,1746617434179,-450.0,0.00019596,2]
[360201096,1746617434188,-450.0,0.00019596,2]
[360201097,1746617434198,-508.7434677,0.00019596,2]
[360201098,1746617434208,-450.0,0.00019596,2]
[360201099,1746617434219,-450.0,0.00019596,2]
[360201100,1746617434229,-450.0,0.00019596,2]
[360201101,1746617434239,-450.93532248,0.00019596,2]
[360201102,1746617434249,-458.14374874,0.00019596,2]
[360201103,1746617434259,-450.0,0.00019596,2]
[360201104,1746617434270,-450.0,0.00019596,2]
[360201105,1746617434280,-450.0,0.00019596,2]
[360201106,1746617434290,-450.0,0.00019596,2]
[360201107,1746617434300,-450.0,0.00019596,2]
[360201108,1746617434310,-450.0,0.00019596,2]
[360201109,1746617434320,-450.0,0.00019596,2]
[360201110,1746617434331,-450.0,0.00019596,2]
[360201111,1746617434341,-450.0,0.00019596,2]
[360201112,1746617434550,-450.0,0.00019596,2]
[360201113,1746617434561,-450.0,0.00019596,2]
[360201114,1746617434570,-451.04972,0.00019596,2]
[360201115,1746617434580,-497.98869133,0.00019596,2]
[360201116,1746617434589,-450.0,0.00019596,2]
[360201117,1746617434599,-450.0,0.00019596,2]
[360201118,1746617434609,-450.0,0.00019596,2]
[360201119,1746617434619,-458.57222766,0.00019596,2]
[360201120,1746617434628,-450.0,0.00019596,2]
[360201121,1746617434637,-450.0,0.00019596,2]
[360201122,1746617434646,-450.0,0.00019596,2]
[360201123,1746617434655,-450.0,0.00019596,2]
[360201124,1746617434664,-450.0,0.00019596,2]
[360201125,1746617434674,-450.0,0.00019596,2]
[360201126,1746617434684,-450.0,0.00019596,2]
[360201127,1746617434693,-462.65077611,0.00019596,2]
[360201128,1746617434702,-450.0,0.00019596,2]
[360201129,1746617434712,-450.0,0.00019596,2]
[360201130,1746617434721,-450.0,0.00019596,2]
[360201131,1746617434730,-466.20876886,0.00019596,2]
[360201132,1746617434740,-468.0677025,0.00019596,2]
[360201133,1746617434749,-450.0,0.00019596,2]
[360201134,1746617434760,-450.0,0.00019596,2]
[360201135,1746617434769,-450.0,0.00019596,2]
[360201136,1746617434779,-470.2267653,0.00019596,2]
[360201137,1746617434788,-450.0,0.00019596,2]
[360201138,1746617434797,-478.63754417,0.00019596,2]
[360201139,1746617434806,-166.95416166,0.00019596,2]
[360201140,1746617434816,-544.50502959,0.00019596,2]
[360201141,1746617434825,-478.83941266,0.00019596,2]
[360201142,1746617434835,-450.0,0.00019596,2]
[360201143,1746617434844,-450.0,0.00019596,2]
[360201144,1746617434854,-456.8803381,0.00019596,2]
[360201145,1746617434863,-450.0,0.00019596,2]
[360201146,1746617434872,-450.0,0.00019596,2]
[360201147,1746617434882,-450.0,0.00019596,2]
[360201148,1746617434891,-450.0,0.00019596,2]
[360201149,1746617434900,-450.0,0.00019596,2]
[360201150,1746617434909,-450.0,0.00019596,2]
[360201151,1746617434918,-450.0,0.00019596,2]
[360201152,1746617434928,-461.52968433,0.00019596,2]
[360201153,1746617434937,-465.35533004,0.00019596,2]
[360201154,1746617434947,-450.0,0.00019596,2]
[360201155,1746617434956,-528.12570452,0.00019596,2]
[360201156,1746617434965,-450.0,0.00019596,2]
[360201157,1746617434974,-450.0,0.00019596,2]
[360201158,1746617434983,-463.90501597,0.00019596,2]
[360201159,1746617434993,-450.0,0.00019596,2]
[360201160,1746617435002,-19607.52687177,0.000196,2]
[360201161,1746617435011,-455.91641373,0.00019633,2]
[360201162,1746617435021,-450.0,0.00019633,2]
[360201163,1746617435030,-450.0,0.00019633,2]
[360201164,1746617435039,-450.0,0.00019633,2]
[360201165,1746617435049,-450.0,0.00019633,2]
[360201166,1746617435058,-450.0,0.00019633,2]
[360201167,1746617435067,-461.82531568,0.00019633,2]
[360201168,1746617435077,-450.0,0.00019633,2]
[360201169,1746617435086,-450.0,0.00019633,2]
[360201170,1746617435095,-19607.52687172,0.00019633,2]
[360201171,1746617435104,-12500.0,0.00019647,2]
[360201172,1746617435113,-450.0,0.00019653,2]
[360201173,1746617435123,-450.0,0.00019653,2]
[360201174,1746617435132,-450.0,0.00019653,2]
[360201175,1746617435141,-450.0,0.00019653,2]
[360201176,1746617435151,-450.0,0.00019653,2]
[360201177,1746617435160,-450.0,0.00019653,2]
[360201178,1746617435170,-12500.0,0.00019656,2]
[360201179,1746617435179,-450.0,0.00019662,2]
[360201180,1746617435189,-450.0,0.00019662,2]
[360201181,1746617435198,-450.0,0.00019662,2]
[360201182,1746617435207,-450.0,0.00019662,2]
[360201183,1746617435217,-507.4309453,0.00019662,2]
[360201184,1746617435226,-450.0,0.00019662,2]
[360201185,1746617435235,-450.0,0.00019662,2]
[360201186,1746617435245,-450.0,0.00019662,2]
[360201187,1746617435255,-193.15788811,0.00019662,2]
[360201188,1746617435265,-450.0,0.00019662,2]
[360201189,1746617435274,-450.0,0.00019662,2]
[360201190,1746617435283,-450.0,0.00019662,2]
[360201191,1746617435292,-450.0,0.00019662,2]
[360201192,1746617435301,-450.0,0.00019662,2]
[360201193,1746617435310,-450.0,0.00019662,2]
[360201194,1746617435320,-314.30960177,0.00019662,2]
[360201195,1746617435329,-450.0,0.00019662,2]
[360201196,1746617435339,-873.3,0.00019662,2]
[360201197,1746617435348,-450.0,0.00019662,2]
[360201198,1746617435359,-450.0,0.00019662,2]
[360201199,1746617435369,-464.78517387,0.00019662,2]
[360201200,1746617435378,-450.0,0.00019662,2]
[360201201,1746617435387,-450.0,0.00019662,2]
[360201202,1746617435396,-501.11,0.00019662,2]
[360201203,1746617435407,-450.0,0.00019662,2]
[360201204,1746617435419,-450.0,0.00019662,2]
[360201205,1746617435429,-450.0,0.00019662,2]
[360201206,1746617435438,-450.0,0.00019662,2]
[360201207,1746617435447,-452.51893086,0.00019662,2]
[360201208,1746617435458,-450.0,0.00019662,2]
[360201209,1746617435467,-450.0,0.00019662,2]
[360201210,1746617435476,-178.51804274,0.00019662,2]
[360201211,1746617435485,-450.0,0.00019662,2]
[360201212,1746617435495,-450.0,0.00019663,2]
[360201213,1746617435505,-450.0,0.00019663,2]
[360201214,1746617435514,-450.0,0.00019663,2]
[360201215,1746617435524,-450.0,0.00019663,2]
[360201216,1746617435533,-450.0,0.00019663,2]
[360201217,1746617435542,-450.0,0.00019663,2]
[360201218,1746617435551,-450.0,0.00019663,2]
[360201219,1746617435560,-450.0,0.00019663,2]
[360201220,1746617435570,-450.0,0.00019663,2]
[360201221,1746617435579,-450.0,0.00019663,2]
[360201222,1746617435588,-450.0,0.00019663,2]
[360201223,1746617435597,-450.0,0.00019663,2]
[360201224,1746617435606,-41380.82,0.00019663,2]
[360201225,1746617435616,-450.0,0.00019663,2]
[360201226,1746617435625,-450.0,0.00019663,2]
[360201227,1746617435634,-450.0,0.00019663,2]
[360201228,1746617435644,-450.0,0.00019663,2]
[360201229,1746617435653,-450.0,0.00019663,2]
[360201230,1746617435662,-450.0,0.00019663,2]
[360201231,1746617435671,-450.0,0.00019663,2]
[360201232,1746617435680,-450.0,0.00019663,2]
[360201233,1746617435689,-450.0,0.00019663,2]
[360201234,1746617435698,-450.0,0.00019663,2]
[360201235,1746617435708,-450.0,0.00019663,2]
[360201236,1746617435718,-500.0,0.00019663,2]
[360201237,1746617435727,-450.0,0.00019663,2]
[360201238,1746617435736,-450.0,0.00019663,2]
[360201239,1746617435745,-450.0,0.00019663,2]
[360201240,1746617435754,-450.0,0.00019663,2]
[360201241,1746617435763,-434.59,0.00019663,2]
[360201242,1746617435773,-446.45,0.00019663,2]
[360201243,1746617435782,-575.42,0.00019663,2]
[360201244,1746617435791,-450.0,0.00019663,2]
[360201245,1746617435800,-730.95,0.00019663,2]
[360201246,1746617435810,-450.0,0.00019663,2]
[360201247,1746617435819,-359.34,0.00019663,2]
[360201248,1746617435828,-450.0,0.00019663,2]
[360201249,1746617435837,-450.0,0.00019663,2]
[360201250,1746617435847,-450.0,0.00019663,2]
[360201251,1746617435855,-450.0,0.00019663,2]
[360201252,1746617435864,-450.0,0.00019663,2]
[360201253,1746617435874,-450.0,0.00019663,2]
[360201254,1746617435883,-454.71,0.00019663,2]
[360201255,1746617435893,-257.47094162,0.00019663,2]
[360201256,1746617435902,-450.0,0.00019663,2]
[360201257,1746617435912,-450.0,0.00019663,2]
[360201258,1746617435923,-450.0,0.00019663,2]
[360201259,1746617435934,-450.0,0.00019663,2]
[360201260,1746617435943,-464.28,0.00019663,2]
[360201261,1746617435953,-450.0,0.00019663,2]
[360201262,1746617435962,-450.0,0.00019663,2]
[360201263,1746617435972,-450.0,0.00019663,2]
[360201264,1746617435981,-450.0,0.00019663,2]
[360201265,1746617435990,-450.0,0.00019663,2]
[360201266,1746617435999,-450.0,0.00019663,2]
[360201267,1746617436008,-450.0,0.00019663,2]
[360201268,1746617436018,-450.0,0.00019663,2]
[360201269,1746617436027,-1228.67,0.00019663,2]
[360201270,1746617436036,-450.0,0.00019663,2]
[360201271,1746617436046,-450.0,0.00019663,2]
[360201272,1746617436055,-450.0,0.00019663,2]
[360201273,1746617436065,-1377.21,0.00019663,2]
[360201274,1746617436074,-450.0,0.00019663,2]
[360201275,1746617436083,-450.0,0.00019663,2]
[360201276,1746617436092,-11817.52,0.00019663,2]
[360201277,1746617436101,-450.0,0.00019663,2]
[360201278,1746617436111,-450.0,0.00019663,2]
[360201279,1746617436120,-494.5093263,0.00019663,2]
[360201280,1746617436130,-450.0,0.00019663,2]
[360201281,1746617436139,-3984.42,0.00019663,2]
[360201282,1746617436148,-450.0,0.00019663,2]
[360201283,1746617436159,-450.0,0.00019663,2]
[360201284,1746617436169,-12500.0,0.00019665,2]
[360201285,1746617436179,-19607.52687172,0.00019667,2]
[360201286,1746617436188,-503.22616847,0.00019673,2]
[360201287,1746617436197,-500.0,0.00019673,2]
[360201288,1746617436206,-500.0,0.00019673,2]
[360201289,1746617436216,-500.0,0.00019673,2]
[360201290,1746617436226,-500.0,0.00019673,2]
[360201291,1746617436235,-450.0,0.00019673,2]
[360201292,1746617436244,-450.0,0.00019673,2]
[360201293,1746617436253,-450.0,0.00019673,2]
[360201294,1746617436262,-450.0,0.00019673,2]
[360201295,1746617436271,-450.0,0.00019673,2]
[360201296,1746617436280,-450.0,0.00019673,2]
[360201297,1746617436290,-450.0,0.00019673,2]
[360201298,1746617436299,-500.0,0.00019673,2]
[360201299,1746617436309,-450.0,0.00019673,2]
[360201300,1746617436319,-450.0,0.00019673,2]
[360201301,1746617436331,-450.0,0.00019673,2]
[360201302,1746617436340,-450.0,0.00019673,2]
[360201303,1746617436349,-450.0,0.00019673,2]
[360201304,1746617436359,-450.0,0.00019673,2]
[360201305,1746617436368,-12500.0,0.00019673,2]
[360201306,1746617436378,-5934.0,0.00019676,2]
[360201307,1746617436387,-1142.0,0.00019676,2]
[360201308,1746617436396,-1302.0,0.00019676,2]
[360201309,1746617436406,-927.0,0.00019676,2]
[360201310,1746617436419,-4017.0,0.00019676,2]
[360201311,1746617436428,-12500.0,0.00019682,2]
[360201312,1746617436438,-12500.0,0.00019691,2]
[360201313,1746617436447,-450.0,0.00019699,2]
[360201314,1746617436457,-450.0,0.00019699,2]
[360201315,1746617436466,-12500.0,0.000197,2]
[360201316,1746617436478,-19607.52687172,0.000197,2]
[360201317,1746617436488,-12500.0,0.00019709,2]
[360201318,1746617436498,-207.4,0.00019714,2]
[360201319,1746617436507,-12500.0,0.00019717,2]
[360201320,1746617436516,-12500.0,0.00019726,2]
[360201321,1746617436526,-19607.52687172,0.00019733,2]
[360201322,1746617436535,-19607.52687172,0.00019767,2]
[360201323,1746617436545,-151.0,0.00019767,2]
[360201324,1746617436554,-28.61902174,0.00019767,2]
[360201351,1746617441859,-122.38097826,0.00019767,2]
[360201352,1746617441868,-32.44590079,0.00019767,2]
[360201353,1746617441879,-636.20595678,0.00019767,2]
[360201354,1746617441888,-337.79129087,0.00019773,2]
[360201355,1746617441898,-50.74197227,0.00019773,2]
[360201356,1746617441907,-394.90462189,0.00019773,2]
[360201357,1746617441918,-105.09537811,0.00019773,2]
[360201358,1746617441927,-263.30685679,0.00019773,2]
[360201359,1746617441938,-236.69314321,0.00019773,2]
[360201360,1746617441947,-500.0,0.00019773,2]
[360201361,1746617441957,-500.0,0.00019773,2]
[360201362,1746617441966,-500.0,0.00019773,2]
[360201363,1746617441975,-501.36466513,0.00019773,2]
[360201364,1746617441984,-500.0,0.00019773,2]
[360201365,1746617441993,-399.91161886,0.00019773,2]
[360201366,1746617442002,-138.5581855,0.00019773,2]
[360201367,1746617442014,-361.4418145,0.00019773,2]
[360201368,1746617442023,-500.0,0.00019773,2]
[360201369,1746617442032,-100.6923457,0.00019774,2]
[360201374,1746617442423,-520.96124666,0.00019596,2]
[360201376,1746617442432,-450.0,0.00019596,2]
[360201378,1746617442441,-219.34833841,0.00019596,2]
[360201380,1746617442452,-230.65166159,0.00019596,2]
[360201381,1746617442462,-450.0,0.00019633,2]
[360201382,1746617442471,-378.01285131,0.00019633,2]
[360201383,1746617442480,-561.32076371,0.00019633,2]
[360201384,1746617442491,-450.0,0.00019633,2]
[360201385,1746617442501,-450.0,0.00019633,2]
[360201386,1746617442511,-450.0,0.00019633,2]
[360201387,1746617442521,-444.46606393,0.00019633,2]
[360201388,1746617442530,-207.09277687,0.00019662,2]
[360201389,1746617442539,-462.89568465,0.00019699,2]
[360201390,1746617442549,-50.3076543,0.00019774,2]
[360201391,1746617442558,-151.0,0.00019779,2]
[360201392,1746617442568,-151.0,0.0001979,2]
[360201393,1746617442739,-263.0,0.00019799,2]
[360201394,1746617442757,-450.0,0.00019799,2]
[360201395,1746617442767,-527.22734682,0.00019799,2]
[360201396,1746617442776,-453.07403697,0.00019799,2]
[360201397,1746617442786,-450.0,0.00019799,2]
[360201398,1746617442796,-450.0,0.00019799,2]
[360201399,1746617442806,-450.0,0.00019799,2]
[360201400,1746617442816,-450.0,0.00019799,2]
[360201401,1746617442825,-450.0,0.00019799,2]
[360201402,1746617442835,-450.0,0.00019799,2]
[360201403,1746617442844,-450.0,0.00019799,2]
[360201404,1746617442853,-873.3,0.00019799,2]
[360201405,1746617442863,-450.0,0.00019799,2]
[360201406,1746617442873,-450.0,0.00019799,2]
[360201407,1746617442883,-450.0,0.00019799,2]
[360201408,1746617442892,-242.03686887,0.00019799,2]
[360201409,1746617442902,-450.0,0.00019799,2]
[360201410,1746617442911,-500.0,0.00019799,2]
[360201411,1746617442921,-450.0,0.00019799,2]
[360201412,1746617442931,-450.0,0.00019799,2]
[360201413,1746617442941,-151.0,0.00019799,2]
[360201414,1746617442950,-45016.86311506,0.000198,5]
[360201415,1746617442967,-450.0,0.00019633,2]
[360201416,1746617442977,-748.89792083,0.000198,5]
[360201417,1746617443025,-450.0,0.0001958,2]
[360201418,1746617443035,-450.0,0.00019663,2]
[360201419,1746617443045,-44431.46763988,0.000198,5]
[360201420,1746617443055,-19607.52687172,0.000198,2]
[360201421,1746617443064,-19607.52687172,0.00019833,2]
[360201422,1746617443074,-450.0,0.00019857,2]
[360201423,1746617443084,-450.0,0.00019857,2]
[360201425,1746617443093,-450.0,0.00019857,2]
[360201426,1746617443104,-450.0,0.00019857,2]
[360201427,1746617443113,-450.0,0.00019857,2]
[360201428,1746617443123,-450.0,0.00019857,2]
[360201429,1746617443132,-450.0,0.00019857,2]
[360201430,1746617443142,-450.0,0.00019857,2]
[360201431,1746617443152,-450.0,0.00019857,2]
[360201432,1746617443162,-500.0,0.00019857,2]
[360201433,1746617443172,-450.0,0.00019857,2]
[360201434,1746617443182,-450.0,0.00019857,2]
[360201435,1746617443192,-450.0,0.00019857,2]
[360201436,1746617443202,-450.0,0.00019857,2]
[360201437,1746617443212,-450.0,0.00019857,2]
[360201438,1746617443221,-450.0,0.00019857,2]
[360201439,1746617443231,-450.0,0.00019857,2]
[360201440,1746617443240,-450.0,0.00019857,2]
[360201441,1746617443250,-450.0,0.00019857,2]
[360201442,1746617443260,-450.0,0.00019857,2]
[360201443,1746617443270,-537.23,0.00019857,2]
[360201444,1746617443280,-450.0,0.00019857,2]
[360201445,1746617443290,-450.0,0.00019857,2]
[360201446,1746617443300,-450.0,0.00019857,2]
[360201447,1746617443310,-450.0,0.00019857,2]
[360201448,1746617443320,-450.0,0.00019857,2]
[360201449,1746617443330,-450.0,0.00019857,2]
[360201450,1746617443340,-450.0,0.00019857,2]
[360201451,1746617443349,-450.0,0.00019857,2]
[360201452,1746617443359,-450.0,0.00019857,2]
[360201453,1746617443368,-450.0,0.00019857,2]
[360201454,1746617443378,-450.0,0.00019857,2]
[360201455,1746617443388,-450.0,0.00019857,2]
[360201456,1746617443398,-450.0,0.00019857,2]
[360201457,1746617443407,-464.87,0.00019857,2]
[360201458,1746617443421,-450.0,0.00019857,2]
[360201459,1746617443431,-450.0,0.00019857,2]
[360201460,1746617443442,-450.0,0.00019857,2]
[360201461,1746617443452,-958.44,0.00019857,2]
[360201462,1746617443461,-450.0,0.00019857,2]
[360201463,1746617443471,-450.0,0.00019857,2]
[360201464,1746617443482,-19607.52687172,0.00019867,2]
[360201465,1746617443492,-3037.61768306,0.0001987,2]
[360201466,1746617443502,-166.55221697,0.00019886,2]
[360201467,1746617443511,-8877.19694691,0.00019889,2]
[360201468,1746617443521,-450.0,0.00019893,2]
[360201469,1746617443531,-450.0,0.00019893,2]
[360201470,1746617443540,-587.94898855,0.00019897,2]
[360201471,1746617443550,-211.85514328,0.00019897,2]
[360201472,1746617443560,-181.62865943,0.000199,2]
[360201473,1746617443569,-411.7147285,0.000199,2]
[360201474,1746617443579,-4753.60179229,0.000199,3]
[360201475,1746617443589,-281.0,0.000199,2]
[360201476,1746617443598,-3206.30829826,0.000199,2]
[360201477,1746617443608,-19607.52687172,0.000199,2]
[360201478,1746617443617,-189.37321777,0.000199,3]
[360201479,1746617443627,-3661.33577324,0.000199,2]
[360201480,1746617443636,-9004.62626052,0.000199,2]
[360201481,1746617443646,-450.0,0.0001991,2]
[360201482,1746617443655,-450.0,0.0001991,2]
[360201483,1746617443664,-450.0,0.0001991,2]
[360201484,1746617443673,-450.0,0.00019916,2]
[360201485,1746617443683,-450.0,0.00019916,2]
[360201486,1746617443693,-450.0,0.00019916,2]
[360201487,1746617443702,-450.0,0.00019916,2]
[360201488,1746617443712,-450.0,0.00019916,2]
[360201489,1746617443722,-450.0,0.00019916,2]
[360201490,1746617443733,-450.0,0.00019916,2]
[360201491,1746617443743,-450.0,0.00019916,2]
[360201492,1746617443752,-450.0,0.00019916,2]
[360201493,1746617443762,-450.0,0.00019916,2]
[360201494,1746617443772,-450.0,0.00019916,2]
[360201495,1746617443781,-450.0,0.00019916,2]
[360201496,1746617443791,-450.0,0.00019916,2]
[360201497,1746617443800,-450.0,0.00019916,2]
[360201498,1746617443809,-41380.82,0.00019916,2]
[360201499,1746617443819,-450.0,0.00019916,2]
[360201500,1746617443828,-450.0,0.00019916,2]
[360201501,1746617443838,-450.0,0.00019916,2]
[360201502,1746617443847,-450.0,0.00019916,2]
[360201503,1746617443856,-450.0,0.00019916,2]
[360201504,1746617443866,-450.0,0.00019916,2]
[360201505,1746617443876,-450.0,0.00019916,2]
[360201506,1746617443886,-575.42,0.00019916,2]
[360201507,1746617443895,-450.0,0.00019916,2]
[360201508,1746617443905,-730.95,0.00019916,2]
[360201509,1746617443914,-450.0,0.00019916,2]
[360201510,1746617443923,-575.36920262,0.00019916,2]
[360201511,1746617443932,-450.0,0.00019916,2]
[360201512,1746617443942,-450.0,0.00019916,2]
[360201513,1746617443951,-450.0,0.00019916,2]
[360201514,1746617443960,-150.89,0.00019916,2]
[360201515,1746617443970,-569.72,0.00019916,2]
[360201516,1746617443979,-450.0,0.00019916,2]
[360201517,1746617443989,-450.0,0.00019916,2]
[360201518,1746617443998,-450.0,0.00019916,2]
[360201519,1746617444008,-450.0,0.00019916,2]
[360201520,1746617444017,-450.0,0.00019916,2]
[360201521,1746617444027,-450.0,0.00019916,2]
[360201522,1746617444036,-1228.67,0.00019916,2]
[360201523,1746617444046,-450.0,0.00019916,2]
[360201524,1746617444055,-169.73308371,0.00019916,2]
[360201525,1746617444065,-450.0,0.00019916,2]
[360201526,1746617444074,-1377.21,0.00019916,2]
[360201527,1746617444083,-450.0,0.00019916,2]
[360201528,1746617444093,-11817.52,0.00019916,2]
[360201529,1746617444102,-450.0,0.00019916,2]
[360201530,1746617444112,-3984.42,0.00019916,2]
[360201531,1746617444121,-450.0,0.00019916,2]
[360201532,1746617444131,-450.0,0.00019972,2]
[360201533,1746617444140,-450.0,0.00019972,2]
[360201534,1746617444150,-450.0,0.00019972,2]
[360201535,1746617444159,-450.0,0.00019972,2]
[360201536,1746617444170,-450.0,0.00019972,2]
[360201537,1746617444179,-450.0,0.00019972,2]
[360201538,1746617444189,-500.0,0.00019972,2]
[360201539,1746617444198,-450.0,0.00019972,2]
[360201540,1746617444208,-509.4,0.00019972,2]
[360201541,1746617444217,-450.0,0.00019972,2]
[360201542,1746617444227,-450.0,0.00019972,2]
[360201543,1746617444236,-450.0,0.00019972,2]
[360201544,1746617444246,-450.0,0.00019972,2]
[360201545,1746617444255,-450.0,0.00019972,2]
[360201546,1746617444265,-450.0,0.00019972,2]
[360201547,1746617444274,-450.0,0.00019972,2]
[360201548,1746617444283,-537.23,0.00019972,2]
[360201549,1746617444292,-450.0,0.00019972,2]
[360201550,1746617444302,-450.0,0.00019972,2]
[360201551,1746617444311,-450.0,0.00019972,2]
[360201552,1746617444320,-450.0,0.00019972,2]
[360201553,1746617444329,-450.0,0.00019972,2]
[360201554,1746617444338,-450.0,0.00019972,2]
[360201555,1746617444347,-592.83775424,0.00019972,2]
[360201556,1746617444357,-450.0,0.00019972,2]
[360201557,1746617444367,-450.0,0.00019972,2]
[360201558,1746617444376,-450.0,0.00019972,2]
[360201559,1746617444386,-178.47559223,0.00019972,2]
[360201560,1746617444395,-464.87,0.00019972,2]
[360201561,1746617444405,-450.0,0.00019972,2]
[360201562,1746617444418,-450.0,0.00019972,2]
[360201563,1746617444435,-450.0,0.00019972,2]
[360201564,1746617444448,-958.44,0.00019972,2]
[360201565,1746617444459,-450.000001,0.00019972,2]
[360201566,1746617444469,-450.0,0.00019972,2]
[360201567,1746617444479,-500.0,0.00019973,2]
[360201568,1746617444490,-500.0,0.00019973,2]
[360201569,1746617444500,-390.01411453,0.00019973,2]
[360201570,1746617444510,-500.0,0.00019973,2]
[360201571,1746617444520,-500.0,0.00019973,2]
[360201572,1746617444530,-500.0,0.00019973,2]
[360201573,1746617444540,-162.83256952,0.00019973,2]
[360201574,1746617444550,-500.0,0.00019973,2]
[360201575,1746617444560,-500.0,0.00019973,2]
[360201576,1746617444570,-500.0,0.00019973,2]
[360201577,1746617444580,-500.0,0.00019973,2]
[360201578,1746617444590,-500.0,0.00019973,2]
[360201579,1746617444600,-500.0,0.00019973,2]
[360201580,1746617444609,-500.0,0.00019973,2]
[360201581,1746617444619,-500.0,0.00019973,2]
[360201582,1746617444629,-500.0,0.00019973,2]
[360201583,1746617444639,-450.0,0.00019985,2]
[360201584,1746617444648,-450.0,0.00019985,2]
[360201585,1746617444658,-450.0,0.00019985,2]
[360201586,1746617444668,-450.0,0.00019985,2]
[360201587,1746617444678,-450.0,0.00019985,2]
[360201588,1746617444687,-450.0,0.00019985,2]
[360201589,1746617444697,-450.0,0.00019985,2]
[360201590,1746617444706,-450.0,0.00019985,2]
[360201591,1746617444716,-450.0,0.00019985,2]
[360201592,1746617444726,-450.0,0.00019985,2]
[360201593,1746617444736,-475.622608,0.00019985,2]
[360201594,1746617444745,-450.0,0.00019985,2]
[360201595,1746617444755,-41380.82,0.00019985,2]
[360201596,1746617444765,-450.0,0.00019985,2]
[360201597,1746617444775,-450.0,0.00019985,2]
[360201598,1746617444784,-450.0,0.00019985,2]
[360201599,1746617444794,-291.29,0.00019985,2]
[360201600,1746617444804,-575.42,0.00019985,2]
[360201601,1746617444814,-512.50921445,0.00019985,2]
[360201602,1746617444823,-730.95,0.00019985,2]